bitfinex/quotes_ETHUSD_20250411
["timestamp","ask_amount","ask_price","bid_price","bid_amount"]
[1744398099640,6.39918,1562.7,1562.4,13.440499]
[1744398100064,0.5,1562.6,1562.4,7.040249]
[1744398100571,0.5,1562.6,1562.4,13.440609]
[1744398101136,0.5,1562.6,1562.4,7.040339]
[1744398101547,0.5,1562.6,1562.4,0.640069]
[1744398101774,0.5,1562.6,1562.4,6.4004]
[1744398102140,0.7905,1562.5,1562.2,6.40112]
[1744398102345,7.19072,1562.5,1562.2,6.40112]
[1744398102576,6.40088,1562.3,1562.0,7.682405]
[1744398102844,6.40084,1562.3,1562.0,7.682285]
[1744398103546,13.59089,1562.5,1562.1,7.1696685]
[1744398103872,13.59089,1562.5,1562.1,6.40144]
[1744398104074,6.40042,1562.4,1562.1,6.40144]
[1744398104272,7.19058,1562.5,1562.0,0.46916388]
[1744398104478,12.96962,1562.6,1562.2,0.811]
[1744398104674,12.96962,1562.6,1562.3,6.40068]
[1744398104846,6.57,1562.6,1562.2,6.40115]
[1744398105040,6.40016,1562.5,1562.2,6.40115]
[1744398106655,12.96964,1562.6,1562.2,6.4011]
[1744398107374,6.57,1562.6,1562.3,6.40064]
[1744398107561,6.57,1562.6,1562.4,6.4004]
[1744398107765,0.5,1562.6,1562.4,6.4004]
[1744398108776,0.49472428,1562.6,1562.4,6.4004]
[1744398109579,0.49472428,1562.6,1562.5,6.4]
[1744398109748,0.49472428,1562.6,1562.4,6.40025]
[1744398109957,6.39918,1562.7,1562.4,0.715735]
[1744398110153,12.79865,1562.7,1562.3,13.55852]
[1744398110350,13.23638,1562.9,1562.4,4.15192656]
[1744398110689,6.39805,1563.0,1562.7,6.39895]
[1744398110889,6.39839,1562.9,1562.6,7.21706]
[1744398111795,12.79715,1562.9,1562.5,12.7998]
[1744398112007,12.79715,1562.9,1562.5,14.16062]
[1744398112214,6.39801,1563.0,1562.6,6.39942]
[1744398112515,6.8315,1563.3,1562.9,6.39803]
[1744398112797,6.39732,1563.2,1562.9,6.39803]
[1744398113285,6.39728,1563.2,1562.9,6.39803]
[1744398113486,6.39775,1563.1,1562.7,13.57702]
[1744398113675,6.39775,1563.1,1562.8,1.357702]
[1744398113676,12.7955,1563.1,1562.8,1.357702]
[1744398113996,6.39775,1563.1,1562.8,1.357702]
[1744398114401,6.39775,1563.1,1562.8,7.756412]
[1744398114694,6.39775,1563.1,1562.8,7.756342]
[1744398116389,6.39775,1563.1,1562.8,14.154972]
[1744398116616,0.7615,1563.3,1562.8,1.357702]
[1744398116895,6.39895,1562.8,1562.5,7.17044]
[1744398117189,6.39895,1562.8,1562.5,13.57031]
[1744398117396,6.39895,1562.8,1562.5,7.17037]
[1744398117900,6.39895,1562.8,1562.5,13.57025]
[1744398118067,12.79792,1562.8,1562.5,7.17037]
[1744398118267,6.39895,1562.8,1562.5,7.64559471]
[1744398118598,6.39895,1562.8,1562.5,14.04545471]
[1744398119097,6.39848,1562.9,1562.6,6.39957]
[1744398119262,12.79702,1562.9,1562.6,6.39957]
[1744398120095,13.55512,1563.0,1562.7,6.39912]
[1744398120298,0.7589,1563.0,1562.6,6.39959]
[1744398120488,13.011,1563.1,1562.9,6.39835]
[1744398120684,6.39754,1563.1,1562.7,1.404959]
[1744398120889,6.39867,1562.9,1562.5,7.69541471]
[1744398121196,6.4003,1562.5,1562.2,8.50168]
[1744398121409,0.8082,1562.6,1561.7,4.90256366]
[1744398121606,3.8082,1562.4,1561.9,6.40244]
[1744398121806,6.40101,1562.3,1561.9,12.80476]
[1744398122007,6.40126,1562.2,1561.8,7.22305]
[1744398122188,6.40169,1562.1,1561.8,13.6258]
[1744398122389,6.40089,1562.3,1561.9,6.40231]
[1744398122806,6.40083,1562.3,1562.0,6.40176]
[1744398123109,12.80183,1562.3,1562.0,6.40176]
[1744398123311,6.40126,1562.2,1561.9,6.40238]
[1744398123623,0.7702,1562.2,1561.6,7.20943]
[1744398123784,6.40217,1562.0,1561.7,6.40314]
[1744398124108,12.47081,1562.3,1561.9,0.8166]
[1744398124109,6.07,1562.3,1561.9,0.8166]
[1744398124407,26.57516,1562.6,1562.2,6.40109]
[1744398124608,6.40006,1562.5,1562.2,6.40109]
[1744398125012,13.3406,1562.6,1562.3,0.8148]
[1744398125322,13.26511,1562.8,1562.4,6.40018]
[1744398125479,6.39931,1562.7,1562.4,6.40018]
[1744398126820,13.33941,1562.9,1562.6,6.39958]
[1744398127410,4.21703868,1563.0,1562.7,6.39902]
[1744398127616,4.21703868,1563.0,1562.9,7.19346]
[1744398127794,4.21703868,1563.0,1562.9,0.7951]
[1744398128411,4.21703868,1563.0,1562.9,7.19346]
[1744398128791,4.21703868,1563.0,1562.9,15.64602366]
[1744398129445,4.22711223,1563.5,1563.4,7.22041]
[1744398129813,4.22711223,1563.5,1563.2,13.55884]
[1744398130010,4.22711223,1563.5,1563.3,6.39671]
[1744398130245,4.22711223,1563.5,1563.3,6.88128064]
[1744398130456,4.22711223,1563.5,1563.3,13.27786064]
[1744398131344,4.22711223,1563.5,1563.4,6.39631]
[1744398132414,0.1728,1563.7,1563.5,6.39574]
[1744398132614,0.1728,1563.7,1563.6,6.45944109]
[1744398132813,0.1728,1563.7,1563.6,6.39549]
[1744398133040,0.1728,1563.7,1563.6,8.87991037]
[1744398133239,0.1728,1563.7,1563.6,9.42991037]
[1744398133551,0.1728,1563.7,1563.6,17.13251037]
[1744398135132,0.1728,1563.7,1563.6,20.13251037]
[1744398135505,1e-05,1563.7,1563.6,20.13251037]
[1744398139680,1.71e-06,1563.8,1563.7,0.8104]
[1744398139876,1.71e-06,1563.8,1563.7,16.9546237]
[1744398140182,1.71e-06,1563.8,1563.7,18.2974237]
[1744398141778,1.71e-06,1563.8,1563.7,18.77794458]
[1744398141986,1.71e-06,1563.8,1563.7,13.87538092]
[1744398142182,1.71e-06,1563.8,1563.7,10.32538092]
[1744398142387,1.71e-06,1563.8,1563.7,13.32538092]
[1744398143286,1.71e-06,1563.8,1563.7,13.87538092]
[1744398146383,1.71e-06,1563.8,1563.7,13.32538092]
[1744398146968,1.71e-06,1563.8,1563.7,12.53258092]
[1744398148076,1.71e-06,1563.8,1563.7,0.48052088]
[1744398148258,1.71e-06,1563.8,1563.6,13.32441]
[1744398148458,1.71e-06,1563.8,1563.6,19.71977]
[1744398149290,1.71e-06,1563.8,1563.7,6.39508]
[1744398150599,1.71e-06,1563.8,1563.7,6.4590249]
[1744398150808,1.71e-06,1563.8,1563.7,9.07689239]
[1744398150978,1.71e-06,1563.8,1563.7,9.87239239]
[1744398151597,1.71e-06,1563.8,1563.7,9.80844749]
[1744398152095,1.71e-06,1563.8,1563.7,10.29244838]
[1744398152314,1.71e-06,1563.8,1563.7,13.90638263]
[1744398152511,1.71e-06,1563.8,1563.7,13.84244838]
[1744398154598,0.05,1564.4,1564.3,6.39263]
[1744398155272,0.05,1564.4,1564.3,7.671176]
[1744398156078,0.05,1564.4,1564.3,7.73509272]
[1744398156530,0.05,1564.4,1564.3,7.671176]
[1744398156708,0.05,1564.4,1564.3,7.7350927]
[1744398157193,0.05,1564.4,1564.3,7.671176]
[1744398157400,0.05,1564.4,1564.3,7.73508987]
[1744398157599,0.05,1564.4,1564.3,11.48708352]
[1744398158697,0.05,1564.4,1564.3,11.423176]
[1744398159416,0.05,1564.4,1564.3,11.90358068]
[1744398160213,0.05,1564.4,1564.3,12.45358068]
[1744398164895,0.7949,1565.0,1564.8,6.39043]
[1744398165104,0.7949,1565.0,1564.8,7.029473]
[1744398166510,0.05,1565.4,1564.8,1.438543]
[1744398166723,6.38907,1565.2,1564.8,7.029473]
[1744398166924,0.7559,1565.1,1564.7,6.39089]
[1744398167224,0.7559,1565.1,1564.8,6.39029]
[1744398167383,0.7559,1565.1,1564.8,12.78058]
[1744398167586,0.7559,1565.1,1564.9,6.38993]
[1744398167990,0.7559,1565.1,1564.9,12.77998]
[1744398168187,0.05,1565.4,1565.3,6.38855]
[1744398168385,0.05,1565.4,1565.2,6.38888]
[1744398168581,0.7558,1565.3,1565.0,14.057198]
[1744398168898,0.7558,1565.3,1565.0,12.7792]
[1744398169481,0.7558,1565.3,1565.1,6.3893]
[1744398169681,0.7558,1565.3,1565.1,12.7786]
[1744398169920,0.7558,1565.3,1565.1,12.77855]
[1744398170235,0.7558,1565.3,1565.0,0.06388921]
[1744398170236,0.7558,1565.3,1565.0,6.38975]
[1744398170414,0.7558,1565.3,1565.0,12.7794]
[1744398170801,0.7558,1565.3,1565.0,6.38965]
[1744398171947,0.7558,1565.3,1565.0,12.77929]
[1744398172951,0.7568,1565.2,1564.9,24.31851049]
[1744398173109,0.7568,1565.2,1565.0,6.38966]
[1744398174651,0.7568,1565.2,1565.0,6.38964]
[1744398174951,0.7568,1565.2,1564.9,17.39951049]
[1744398175262,0.7568,1565.2,1565.0,6.38972]
[1744398175760,0.7568,1565.2,1564.9,17.39946049]
[1744398176551,0.7568,1565.2,1564.8,4.13751727]
[1744398176856,0.7568,1565.2,1564.8,16.91859727]
[1744398176857,7.14598,1565.2,1564.8,16.91859727]
[1744398177059,2.110264,1565.2,1564.8,16.91859727]
[1744398177758,8.499344,1565.2,1564.8,10.52805727]
[1744398177921,8.499344,1565.2,1564.8,16.91852727]
[1744398178254,2.110264,1565.2,1564.9,6.39014]
[1744398178556,2.110264,1565.2,1564.8,4.13751727]
[1744398178759,0.05,1565.4,1565.3,6.38855]
[1744398178916,0.05,1565.4,1565.3,10.52606727]
[1744398179760,0.05,1565.4,1565.3,10.58994203]
[1744398179918,0.05,1565.4,1565.3,12.94033147]
[1744398180514,0.05,1565.4,1565.3,20.69171902]
[1744398180711,0.05,1565.4,1565.3,20.62784874]
[1744398180912,0.05,1565.4,1565.3,16.49033147]
[1744398181361,0.05,1565.4,1565.3,21.40774874]
[1744398181668,19.688,1566.2,1565.8,6.38651]
[1744398181669,6.918,1566.2,1565.8,6.38651]
[1744398181872,0.8255,1566.1,1565.8,10.52379727]
[1744398182362,6.38581,1566.0,1565.6,6.38732]
[1744398182531,0.7589,1565.8,1565.4,10.52552727]
[1744398182731,6.3853,1566.1,1565.4,16.91354727]
[1744398182732,12.77252,1565.9,1565.4,16.91354727]
[1744398182938,0.7589,1565.7,1565.4,16.91354727]
[1744398183137,0.7589,1565.7,1565.4,4.13751727]
[1744398183465,0.7589,1565.7,1565.4,16.91360727]
[1744398183628,0.7589,1565.7,1565.5,6.38769]
[1744398184266,0.7589,1565.7,1565.4,4.13751727]
[1744398184463,0.7589,1565.7,1565.4,10.52556727]
[1744398184664,0.7589,1565.7,1565.4,4.13751727]
[1744398184853,0.8113,1565.6,1565.2,6.38892]
[1744398185054,0.8113,1565.6,1565.2,10.52633727]
[1744398185055,0.74742,1565.6,1565.2,10.52633727]
[1744398185567,7.13474,1565.6,1565.2,16.91516727]
[1744398185766,0.74742,1565.6,1565.2,16.91518727]
[1744398185967,7.13478,1565.6,1565.2,10.52633727]
[1744398186145,7.9197134,1565.6,1565.2,10.52633727]
[1744398186345,7.9197134,1565.6,1565.2,16.91515727]
[1744398186547,7.9197134,1565.6,1565.2,10.52633727]
[1744398186965,7.9197134,1565.6,1565.2,16.91515727]
[1744398187174,1.5323534,1565.6,1565.2,16.91515727]
[1744398187580,1.5323534,1565.6,1565.2,4.13751727]
[1744398187779,0.74742,1565.6,1565.4,10.52564727]
[1744398188084,0.74742,1565.6,1565.4,4.13751727]
[1744398188769,0.74742,1565.6,1565.4,10.52563727]
[1744398189553,0.74742,1565.6,1565.4,10.58951763]
[1744398189758,0.74742,1565.6,1565.5,6.38773]
[1744398190369,0.7881,1565.8,1565.5,12.77546]
[1744398190574,0.7881,1565.8,1565.4,11.58448903]
[1744398190776,0.7881,1565.8,1565.4,10.52553727]
[1744398191172,7.1382,1565.7,1565.3,4.13751727]
[1744398191454,9.38572,1566.0,1565.1,10.52681727]
[1744398191455,0.7512,1565.5,1565.1,10.52681727]
[1744398191678,0.7512,1565.5,1565.1,4.20140308]
[1744398191879,0.7512,1565.5,1565.2,6.38887]
[1744398192066,1.465065,1565.5,1565.2,6.38882]
[1744398192278,0.7512,1565.5,1565.1,4.20140308]
[1744398192469,0.7512,1565.5,1565.3,10.52592727]
[1744398192679,0.7512,1565.5,1565.3,4.13751727]
[1744398192967,0.7512,1565.5,1565.2,12.77768]
[1744398193174,0.7512,1565.5,1565.3,6.38834]
[1744398193761,0.7512,1565.5,1565.3,16.91428727]
[1744398193967,0.7512,1565.5,1565.4,6.38814]
[1744398194162,0.7512,1565.5,1565.3,10.52585727]
[1744398195979,0.7512,1565.5,1565.3,4.13751727]
[1744398196169,0.7512,1565.5,1565.2,6.87213161]
[1744398196365,8.491603,1565.5,1565.1,4.13751727]
[1744398196594,8.491603,1565.5,1565.1,10.52676727]
[1744398196814,7.14729,1565.4,1564.9,11.34960727]
[1744398196985,13.53583,1565.4,1564.9,16.91766727]
[1744398197312,7.14729,1565.4,1565.0,12.77948]
[1744398197512,2.2477713,1565.4,1565.0,6.38974]
[1744398197715,2.2477713,1565.4,1565.0,12.77948]
[1744398197892,0.759,1565.4,1565.1,16.91584727]
[1744398198206,0.759,1565.4,1565.0,12.77936]
[1744398198207,7.1472,1565.4,1565.0,12.77936]
[1744398198407,7.14716,1565.4,1565.0,6.38967]
[1744398198616,7.14716,1565.4,1565.0,12.77934]
[1744398198911,8.500654,1565.4,1565.0,13.25082933]
[1744398199296,0.759,1565.4,1565.1,6.38935]
[1744398199502,0.759,1565.4,1565.1,12.77861]
[1744398199688,0.759,1565.4,1565.1,6.38926]
[1744398199895,0.759,1565.4,1565.1,6.38924]
[1744398200212,0.759,1565.4,1565.1,12.7785]
[1744398200513,0.759,1565.4,1565.2,6.38883]
[1744398201676,0.759,1565.4,1565.2,12.77766]
[1744398201881,0.759,1565.4,1565.2,6.38883]
[1744398202382,0.759,1565.4,1565.1,5.4625162]
[1744398202576,0.759,1565.4,1565.0,13.25074933]
[1744398202792,0.759,1565.4,1565.0,15.06564599]
[1744398203015,7.14717,1565.4,1565.0,15.06567599]
[1744398204325,0.759,1565.4,1565.1,6.38935]
[1744398204489,0.759,1565.4,1565.0,15.06567599]
[1744398204820,0.759,1565.4,1565.1,6.38935]
[1744398205609,0.759,1565.4,1565.0,8.67601599]
[1744398205919,0.759,1565.4,1565.0,15.06567599]
[1744398206419,0.759,1565.4,1565.1,10.52684727]
[1744398206613,0.759,1565.4,1565.1,16.91608727]
[1744398206924,0.759,1565.4,1565.1,16.91601727]
[1744398207124,0.759,1565.4,1565.1,10.52675727]
[1744398207421,1.473682,1565.4,1565.0,17.3883266]
[1744398207617,7.861842,1565.4,1565.0,10.9986666]
[1744398207933,7.861842,1565.4,1565.0,17.3883066]
[1744398208130,1.473682,1565.4,1565.1,6.38928]
[1744398208295,6.38739,1565.6,1565.4,6.38789]
[1744398208296,0.8239,1565.6,1565.4,6.38789]
[1744398208628,0.8239,1565.6,1565.4,10.52540727]
[1744398211197,0.8239,1565.6,1565.4,4.13751727]
[1744398212746,0.8239,1565.6,1565.4,16.91359727]
[1744398212942,6.91,1565.9,1565.5,8.07908973]
[1744398213116,0.803,1565.8,1565.6,4.13751727]
[1744398213715,0.803,1565.8,1565.6,10.52482727]
[1744398213908,0.803,1565.8,1565.6,4.13751727]
[1744398214849,0.803,1565.8,1565.5,8.07908973]
[1744398216433,0.803,1565.8,1565.5,14.46669973]
[1744398216637,0.803,1565.8,1565.6,1.44666997]
[1744398216837,0.803,1565.8,1565.6,11.97134724]
[1744398217224,0.803,1565.8,1565.6,1.44666997]
[1744398217456,0.803,1565.8,1565.5,4.13751727]
[1744398217654,0.803,1565.8,1565.5,10.58898608]
[1744398218468,0.803,1565.8,1565.5,16.97660608]
[1744398218752,0.7673,1566.0,1565.7,10.52427727]
[1744398219050,0.7673,1566.0,1565.7,6.38676]
[1744398219550,13.53908,1566.0,1565.5,17.73385727]
[1744398219718,0.7673,1566.0,1565.6,6.3873]
[1744398219923,7.15304,1566.0,1565.6,6.3873]
[1744398220136,13.53895,1566.0,1565.6,6.3873]
[1744398220351,7.15304,1566.0,1565.6,6.3873]
[1744398220555,7.15304,1566.0,1565.5,19.507263]
[1744398220556,6.38611,1565.9,1565.5,19.507263]
[1744398220755,13.53898,1566.0,1565.5,19.507263]
[1744398220957,7.15304,1566.0,1565.6,6.38731]
[1744398221124,13.53894,1566.0,1565.6,6.38731]
[1744398221325,15.192834,1566.0,1565.5,19.507343]
[1744398221634,15.192984,1566.0,1565.6,6.3872]
[1744398221840,8.806934,1566.0,1565.6,6.3872]
[1744398222046,15.192924,1566.0,1565.6,6.3872]
[1744398222242,15.192954,1566.0,1565.6,6.3872]
[1744398222444,8.806934,1566.0,1565.6,6.38724]
[1744398222645,15.192964,1566.0,1565.6,6.38724]
[1744398223240,0.7673,1566.0,1565.6,7.59820972]
[1744398223443,0.7673,1566.0,1565.6,14.04929854]
[1744398223758,0.7673,1566.0,1565.6,13.98542972]
[1744398224658,7.15302,1566.0,1565.6,7.59820972]
[1744398225153,0.7673,1566.0,1565.6,14.04927405]
[1744398225360,0.7673,1566.0,1565.7,5.54244468]
[1744398225560,0.7673,1566.0,1565.6,13.98534972]
[1744398226257,0.7673,1566.0,1565.7,6.38689]
[1744398226458,0.8051,1566.1,1565.7,10.52440727]
[1744398226660,7.19041,1566.1,1565.7,10.52431727]
[1744398226959,7.19041,1566.1,1565.7,16.91110727]
[1744398227158,7.19041,1566.1,1565.7,10.52430727]
[1744398227531,13.57588,1566.1,1565.7,6.38679]
[1744398227726,9.238998,1566.1,1565.7,12.7736]
[1744398227934,9.238998,1566.1,1565.7,12.83746229]
[1744398228154,9.238998,1566.1,1565.7,6.45065229]
[1744398228752,9.238998,1566.1,1565.8,10.52364727]
[1744398228753,0.8051,1566.1,1565.8,10.52364727]
[1744398228929,0.8051,1566.1,1565.8,16.91003727]
[1744398229129,0.8051,1566.1,1565.8,10.52364727]
[1744398229564,7.19044,1566.1,1565.8,4.13751727]
[1744398230066,0.7596,1565.9,1565.6,7.59818972]
[1744398230235,0.7596,1565.9,1565.6,1.21098972]
[1744398230436,0.7596,1565.9,1565.7,6.3869]
[1744398230757,0.7596,1565.9,1565.7,10.52441727]
[1744398231144,0.7596,1565.9,1565.7,10.52432727]
[1744398231356,0.7596,1565.9,1565.7,10.52431727]
[1744398231556,6.38535,1566.1,1565.7,10.52431727]
[1744398231734,1.403735,1566.0,1565.6,12.77441]
[1744398231934,0.7652,1566.0,1565.7,6.38685]
[1744398232266,0.7652,1566.0,1565.7,6.38681]
[1744398232467,0.7652,1566.0,1565.9,6.3861]
[1744398232768,0.8242,1566.1,1565.9,6.38608]
[1744398232959,0.8242,1566.1,1565.8,10.52377727]
[1744398234568,6.38588,1566.0,1565.6,6.3872]
[1744398234869,7.18155,1565.9,1565.5,10.52510727]
[1744398235065,0.7954,1565.9,1565.5,16.91270727]
[1744398235240,0.7954,1565.9,1565.6,6.38731]
[1744398235567,0.7954,1565.9,1565.6,12.77462]
[1744398235747,0.7954,1565.9,1565.6,14.46586173]
[1744398236268,0.7954,1565.9,1565.6,1.69124173]
[1744398236436,0.7954,1565.9,1565.5,16.91277727]
[1744398237066,0.7954,1565.9,1565.6,6.38731]
[1744398237274,0.812,1566.0,1565.8,6.38633]
[1744398237770,0.812,1566.0,1565.7,16.91118727]
[1744398237968,0.812,1566.0,1565.7,12.296156]
[1744398238158,0.812,1566.0,1565.8,6.38651]
[1744398238554,0.82,1566.2,1565.8,12.77302]
[1744398238750,7.20508,1566.2,1565.8,6.38651]
[1744398238965,13.59027,1566.2,1565.7,18.683076]
[1744398239152,7.20508,1566.2,1565.8,8.2547876]
[1744398240040,7.20508,1566.2,1565.8,14.6411976]
[1744398240240,13.5901,1566.2,1565.8,8.2547176]
[1744398240439,13.5901,1566.2,1565.8,6.38641]
[1744398240440,0.35546066,1566.1,1565.8,6.38641]
[1744398240851,0.35546066,1566.1,1565.8,6.38639]
[1744398241052,0.35546066,1566.1,1565.8,12.77279]
[1744398241267,0.35546066,1566.1,1565.9,6.38609]
[1744398241470,0.35546066,1566.1,1565.9,16.90969727]
[1744398241671,1.1501722,1566.3,1566.0,14.46234973]
[1744398242041,0.3922722,1566.3,1566.2,6.38488]
[1744398242769,0.3922722,1566.3,1566.1,17.72261727]
[1744398243478,0.3922722,1566.3,1566.2,6.38488]
[1744398243774,0.3922722,1566.3,1566.2,8.15711873]
[1744398243969,0.3922722,1566.3,1566.2,1.77223873]
[1744398244772,0.3922722,1566.3,1566.2,8.15711873]
[1744398246269,0.3922722,1566.3,1566.2,1.77223873]
[1744398246640,1.1816722,1566.3,1566.2,1.77223873]
[1744398246845,1.1816722,1566.3,1566.0,14.46211973]
[1744398247045,1.1816722,1566.3,1566.1,10.58663369]
[1744398247246,0.3922722,1566.3,1566.1,16.90795727]
[1744398247457,0.3922722,1566.3,1566.2,6.38488]
[1744398249652,0.3922722,1566.3,1566.2,7.27962216]
[1744398249862,0.3922722,1566.3,1566.2,9.6983601]
[1744398250061,0.3922722,1566.3,1566.2,9.63451794]
[1744398250367,0.3922722,1566.3,1566.2,13.18094673]
[1744398250566,0.3922722,1566.3,1566.2,13.11711205]
[1744398250775,0.3922722,1566.3,1566.2,16.77203521]
[1744398251447,0.3922722,1566.3,1566.2,2.41873794]
[1744398252281,0.3922722,1566.3,1566.1,6.38507]
[1744398253176,0.3922722,1566.3,1566.0,8.07653973]
[1744398253383,1.1549722,1566.3,1566.0,14.46210973]
[1744398255089,1.1549722,1566.3,1566.1,6.44912649]
[1744398255384,1.1549722,1566.3,1566.0,14.46210973]
[1744398255752,1.1549722,1566.3,1566.1,1.44621097]
[1744398256986,1.1549722,1566.3,1566.1,1.51005746]
[1744398257782,1.1549722,1566.3,1566.1,1.44621097]
[1744398258874,1.1549722,1566.3,1566.0,8.07653973]
[1744398259070,7.21499,1566.2,1565.8,6.38641]
[1744398259284,13.60014,1566.2,1565.8,6.38641]
[1744398259480,7.21499,1566.2,1565.8,12.77281]
[1744398259651,0.8299,1566.2,1565.9,6.38607]
[1744398260065,0.8299,1566.2,1565.9,18.1931099]
[1744398260564,0.8299,1566.2,1565.9,11.8071299]
[1744398260756,0.8299,1566.2,1565.9,18.1930999]
[1744398261056,0.3922722,1566.3,1566.0,12.77124]
[1744398261271,0.3922722,1566.3,1566.1,6.38523]
[1744398261474,0.3922722,1566.3,1566.1,18.18506227]
[1744398262887,0.3922722,1566.3,1566.1,11.79983227]
[1744398263578,0.3922722,1566.3,1566.1,11.79977227]
[1744398263780,0.3922722,1566.3,1566.1,18.18494227]
[1744398264479,0.3922722,1566.3,1566.1,5.41460227]
[1744398264814,0.3922722,1566.3,1566.0,6.38556]
[1744398265305,0.784,1566.2,1565.9,19.0208799]
[1744398265510,0.784,1566.2,1565.9,18.1930799]
[1744398265703,0.784,1566.2,1566.0,6.38568]
[1744398266605,0.4946722,1566.3,1565.9,5.4211499]
[1744398266776,0.7843,1566.2,1565.9,11.8071399]
[1744398267313,0.7843,1566.2,1565.9,18.1931199]
[1744398267516,0.7843,1566.2,1565.9,11.8071299]
[1744398267818,7.1692,1566.2,1565.8,6.38639]
[1744398268110,7.1692,1566.2,1565.8,12.7728]
[1744398268311,13.55422,1566.2,1565.8,6.38639]
[1744398268501,7.1692,1566.2,1565.8,12.7728]
[1744398268701,7.1692,1566.2,1565.8,15.15383173]
[1744398269016,0.7843,1566.2,1565.9,6.38607]
[1744398271296,0.7843,1566.2,1565.8,8.76746173]
[1744398271297,13.55431,1566.2,1565.8,8.76746173]
[1744398271617,13.55456,1566.2,1565.8,8.76752173]
[1744398271819,7.1693,1566.2,1565.8,8.76752173]
[1744398272123,7.1693,1566.2,1565.8,15.15393173]
[1744398272295,0.7843,1566.2,1565.8,15.15393173]
[1744398272496,0.7843,1566.2,1565.9,6.38607]
[1744398273090,0.7843,1566.2,1565.9,7.90142717]
[1744398273294,0.7843,1566.2,1565.9,12.03885444]
[1744398273822,7.16918,1566.2,1565.9,4.13751727]
[1744398274527,0.7843,1566.2,1566.0,6.38564]
[1744398275631,0.7843,1566.2,1565.9,11.30609727]
[1744398275833,0.7843,1566.2,1565.9,10.52349727]
[1744398276993,0.7843,1566.2,1565.6,4.93241727]
[1744398277216,0.7791,1566.0,1565.7,6.38691]
[1744398277822,0.7791,1566.0,1565.7,12.77371]
[1744398278732,0.7791,1566.0,1565.7,6.3868]
[1744398278910,7.16504,1566.0,1565.6,6.38725]
[1744398279320,13.55107,1566.0,1565.6,6.38725]
[1744398279518,14.906177,1566.0,1565.6,6.38725]
[1744398279942,8.520047,1566.0,1565.6,6.38725]
[1744398280122,0.7791,1566.0,1565.6,12.83830557]
[1744398280331,0.7791,1566.0,1565.7,10.52435727]
[1744398280706,0.7791,1566.0,1565.7,4.13751727]
[1744398281836,7.16481,1566.0,1565.7,4.13751727]
[1744398282637,7.16481,1566.0,1565.6,6.38721]
[1744398282933,7.16481,1566.0,1565.6,8.15490273]
[1744398283403,7.16481,1566.0,1565.6,14.60596829]
[1744398283606,7.16481,1566.0,1565.6,14.54210273]
[1744398283827,7.16481,1566.0,1565.6,8.15489273]
[1744398285539,7.16481,1566.0,1565.6,14.54211273]
[1744398285839,0.7791,1566.0,1565.7,6.38689]
[1744398286235,0.7791,1566.0,1565.7,7.84106827]
[1744398286406,0.7791,1566.0,1565.7,7.84098827]
[1744398287057,1.3200722,1566.3,1566.0,6.38569]
[1744398287348,7.7046522,1566.3,1565.9,10.52356727]
[1744398287932,7.7046522,1566.3,1565.9,16.90954727]
[1744398288135,7.7046522,1566.3,1565.9,18.680262]
[1744398288450,7.7046522,1566.3,1565.9,12.294212]
[1744398288827,14.0893322,1566.3,1565.9,12.294212]
[1744398289457,7.7046522,1566.3,1565.9,18.680192]
[1744398289766,7.7046522,1566.3,1565.9,12.294212]
[1744398289956,6.38493,1566.2,1565.9,5.908232]
[1744398290160,0.8086,1566.1,1565.6,7.17194]
[1744398290360,6.3858,1566.0,1565.6,17.69665727]
[1744398290574,7.194,1566.1,1565.7,6.38687]
[1744398290726,7.194,1566.1,1565.6,4.92231727]
[1744398290727,0.8086,1566.1,1565.6,4.98618113]
[1744398290927,0.8086,1566.1,1565.8,16.91011727]
[1744398291327,0.8086,1566.1,1565.8,10.52373727]
[1744398291560,7.194,1566.1,1565.8,4.13751727]
[1744398291761,13.57949,1566.1,1565.7,6.88539811]
[1744398291965,7.194,1566.1,1565.7,6.88539811]
[1744398292135,7.194,1566.1,1565.7,13.27220811]
[1744398292342,0.8086,1566.1,1565.7,13.27220811]
[1744398292539,0.8086,1566.1,1565.8,7.71372081]
[1744398292739,7.19391,1566.1,1565.8,1.32722081]
[1744398293039,0.8086,1566.1,1565.8,1.32722081]
[1744398293239,13.57933,1566.1,1565.8,1.32722081]
[1744398293461,7.19389,1566.1,1565.8,1.32722081]
[1744398295041,13.5793,1566.1,1565.8,1.32722081]
[1744398295242,13.5793,1566.1,1565.7,6.88539811]
[1744398295442,13.5793,1566.1,1565.7,0.49861811]
[1744398295443,6.38583,1566.0,1565.7,0.49861811]
[1744398296074,12.77168,1566.0,1565.7,0.49861811]
[1744398296270,0.7601,1565.9,1565.6,10.52471727]
[1744398296441,0.7601,1565.9,1565.6,16.91192727]
[1744398296868,0.7601,1565.9,1565.6,4.13751727]
[1744398297064,0.7601,1565.9,1565.6,16.91198727]
[1744398297275,0.7601,1565.9,1565.6,16.91194727]
[1744398297489,0.7601,1565.9,1565.6,18.685702]
[1744398299180,0.7601,1565.9,1565.7,6.38688]
[1744398299558,0.7101,1565.9,1565.6,12.298482]
[1744398300144,0.7101,1565.9,1565.6,18.685682]
[1744398301279,0.7101,1565.9,1565.6,12.298472]
[1744398301450,0.7101,1565.9,1565.6,18.685682]
[1744398303281,0.828,1566.1,1565.8,10.52386727]
[1744398303486,0.828,1566.1,1565.8,16.91025727]
[1744398304185,0.828,1566.1,1565.7,9.0636382]
[1744398304582,13.59892,1566.1,1565.7,9.0636382]
[1744398304789,13.59892,1566.1,1565.7,6.38677]
[1744398305086,13.59884,1566.1,1565.7,6.38677]
[1744398305396,7.21338,1566.1,1565.7,12.77359]
[1744398305633,13.59885,1566.1,1565.7,6.38677]
[1744398306000,0.828,1566.1,1565.8,6.38642]
[1744398306208,0.828,1566.1,1565.8,10.52393727]
[1744398306804,0.828,1566.1,1565.8,10.52392727]
[1744398307033,0.828,1566.1,1565.8,16.9741237]